bitfinex/quotes_SOLUSD_20241107
["timestamp","ask_amount","ask_price","bid_price","bid_amount"]
[1730970063900,7.86422058,188.93,188.87,26.39482058]
[1730970064104,5.2927,188.94,188.87,18.5306]
[1730970064105,7.86422058,188.92,188.87,18.5306]
[1730970064307,7.86422058,188.91,188.87,18.5306]
[1730970064492,5.2924,188.95,188.89,7.86422058]
[1730970064806,24.16012058,188.96,188.89,7.86422058]
[1730970065007,5.2921,188.96,188.9,7.86422058]
[1730970066400,7.86422058,188.97,188.91,5.2935]
[1730970066602,16.0376,189.0,188.92,7.86422058]
[1730970066786,7.86422058,188.98,188.92,7.86422058]
[1730970067187,16.0376,189.0,188.92,7.86422058]
[1730970067395,7.86422058,188.98,188.91,26.39152058]
[1730970067594,7.86422058,188.97,188.91,18.5273]
[1730970067795,13.15622058,188.97,188.91,18.5273]
[1730970067999,13.15622058,188.97,188.9,7.86422058]
[1730970068211,7.86422058,188.94,188.85,5.2949]
[1730970068416,7.86422058,188.94,188.87,7.86422058]
[1730970069410,7.86422058,188.92,188.84,20.0]
[1730970069617,7.86422058,188.92,188.83,15.8873]
[1730970069794,7.86422058,188.9,188.83,7.86422058]
[1730970070619,7.86422058,188.85,188.78,22.1057768]
[1730970070997,7.86422058,188.85,188.78,23.58699738]
[1730970071299,7.86422058,188.85,188.79,7.86422058]
[1730970071617,13.15952058,188.85,188.79,7.86422058]
[1730970072394,7.86422058,188.84,188.78,8.11359738]
[1730970072798,7.86422058,188.83,188.78,0.2493768]
[1730970073589,7.86422058,188.84,188.78,8.11359738]
[1730970073915,13.15992058,188.84,188.78,8.11359738]
[1730970074300,7.86422058,188.81,188.78,0.2493768]
[1730970075008,7.86422058,188.8,188.78,0.2493768]
[1730970075416,7.86422058,188.79,188.78,0.2493768]
[1730970079404,31.64110458,188.79,188.78,0.2493768]
[1730970079616,0.12549,188.78,188.65,13.16492058]
[1730970079817,0.12549,188.78,188.64,16.2417]
[1730970079818,7.86422058,188.71,188.64,21.5426]
[1730970080117,7.86422058,188.71,188.65,7.86422058]
[1730970080319,0.22549,188.77,188.62,13.2534]
[1730970080320,20.1,188.77,188.62,7.86422058]
[1730970080617,7.86422058,188.7,188.63,7.86422058]
[1730970080818,7.86422058,188.71,188.65,7.86422058]
[1730970081019,23.776884,188.77,188.66,7.86422058]
[1730970081222,23.776884,188.77,188.6,31.58237232]
[1730970081223,7.86422058,188.74,188.62,16.1115]
[1730970081416,7.86422058,188.72,188.66,7.86422058]
[1730970082604,5.2977,188.76,188.67,7.86422058]
[1730970082803,7.86422058,188.73,188.67,7.86422058]
[1730970083017,5.2977,188.76,188.65,18.5524]
[1730970083018,7.86422058,188.75,188.68,7.86422058]
[1730970084123,13.16232058,188.75,188.68,7.86422058]
[1730970084427,7.86422058,188.74,188.68,7.86422058]
[1730970084807,13.16232058,188.75,188.68,7.86422058]
[1730970085007,13.16232058,188.75,188.68,13.16392058]
[1730970085729,7.86422058,188.73,188.68,5.2997]
[1730970085937,7.86422058,188.74,188.68,7.86422058]
[1730970086227,7.86422058,188.72,188.66,20.0]
[1730970086931,7.86422058,188.72,188.66,27.86422058]
[1730970087107,7.86422058,188.74,188.68,7.86422058]
[1730970087435,13.16252058,188.74,188.68,7.86422058]
[1730970090918,29.7748,188.79,188.68,7.86422058]
[1730970091116,7.86422058,188.74,188.68,7.86422058]
[1730970091624,7.86422058,188.76,188.69,7.86422058]
[1730970092710,13.16202058,188.76,188.69,7.86422058]
[1730970093215,7.86422058,188.75,188.69,7.86422058]
[1730970093421,7.86422058,188.75,188.68,5.2999]
[1730970093624,7.86422058,188.75,188.69,7.86422058]
[1730970093810,13.16242058,188.75,188.69,7.86422058]
[1730970095122,13.16242058,188.75,188.68,27.86422058]
[1730970095510,7.86422058,188.74,188.68,20.0]
[1730970095710,7.86422058,188.73,188.68,20.0]
[1730970095916,7.86422058,188.73,188.67,7.86422058]
[1730970096324,7.86422058,188.73,188.67,20.0]
[1730970096519,18.54,188.78,188.67,27.86422058]
[1730970096725,7.86422058,188.74,188.67,27.86422058]
[1730970096933,5.2985,188.73,188.67,27.86422058]
[1730970097821,13.16272058,188.73,188.67,20.0]
[1730970098015,13.16272058,188.73,188.67,27.86422058]
[1730970099549,7.86422058,188.74,188.68,7.86422058]
[1730970099924,7.86422058,188.73,188.67,27.86422058]
[1730970100323,7.86422058,188.73,188.66,27.86422058]
[1730970100721,18.54,188.78,188.66,27.86422058]
[1730970100722,7.86422058,188.72,188.66,27.86422058]
[1730970101335,5.2991,188.71,188.66,27.86422058]
[1730970102642,5.2977,188.76,188.66,27.86422058]
[1730970102844,7.86422058,188.73,188.66,27.86422058]
[1730970103223,5.2977,188.76,188.68,7.86422058]
[1730970103442,7.86422058,188.74,188.68,7.86422058]
[1730970105027,7.86422058,188.75,188.69,7.86422058]
[1730970105244,7.86422058,188.75,188.68,26.41402058]
[1730970105544,13.2429,188.78,188.68,26.41402058]
[1730970105727,7.86422058,188.74,188.68,26.41402058]
[1730970106133,7.86422058,188.73,188.68,18.5498]
[1730970106545,13.16262058,188.74,188.68,26.41402058]
[1730970107142,7.86422058,188.73,188.68,13.2499]
[1730970108721,13.16272058,188.73,188.68,13.2499]
[1730970108941,7.86422058,188.72,188.67,5.3002]
[1730970109444,7.86422058,188.72,188.66,27.86422058]
[1730970109634,7.86422058,188.72,188.66,33.16462058]
[1730970109836,13.16272058,188.73,188.66,46.41592058]
[1730970110028,7.86422058,188.72,188.66,46.41592058]
[1730970110734,7.86422058,188.73,188.67,7.86422058]
[1730970110935,29.073984,188.78,188.67,7.86422058]
[1730970111238,7.86422058,188.74,188.67,7.86422058]
[1730970111637,7.86422058,188.74,188.68,7.86422058]
[1730970111857,5.2971,188.78,188.68,7.86422058]
[1730970112059,7.86422058,188.75,188.68,7.86422058]
[1730970112233,7.86422058,188.74,188.68,13.16402058]
[1730970112552,7.86422058,188.73,188.67,13.16422058]
[1730970113331,7.86422058,188.73,188.67,5.3]
[1730970113740,13.16282058,188.73,188.67,5.3]
[1730970115941,13.16282058,188.73,188.67,13.16422058]
[1730970116452,13.16282058,188.73,188.67,5.3]
[1730970120759,7.86422058,188.72,188.67,5.3]
[1730970122758,13.16282058,188.73,188.67,5.3]
[1730970123957,13.2429,188.78,188.68,20.0]
[1730970124156,29.073984,188.78,188.68,27.86422058]
[1730970124362,7.86422058,188.73,188.68,20.0]
[1730970124571,7.86422058,188.74,188.68,20.0]
[1730970125257,7.86422058,188.73,188.68,25.2998]
[1730970126161,7.86422058,188.73,188.68,5.2998]
[1730970126555,7.86422058,188.73,188.67,13.2506]
[1730970126775,7.86422058,188.72,188.67,18.5508]
[1730970127451,13.16292058,188.73,188.67,18.5508]
[1730970127782,5.2987,188.73,188.67,18.5508]
[1730970127970,23.776884,188.78,188.67,26.41502058]
[1730970127971,5.2974,188.77,188.67,26.41502058]
[1730970128189,7.86422058,188.74,188.67,26.41502058]
[1730970129182,7.86422058,188.73,188.67,26.41502058]
[1730970130262,7.86422058,188.73,188.67,13.2506]
[1730970130585,13.16252058,188.74,188.67,21.11482058]
[1730970131284,7.86422058,188.73,188.67,13.2506]
[1730970131765,7.86422058,188.73,188.67,18.5508]
[1730970132282,13.16252058,188.74,188.67,26.41502058]
[1730970133271,13.16222058,188.75,188.68,7.86422058]
[1730970134065,7.86422058,188.74,188.67,18.5508]
[1730970134266,13.16252058,188.74,188.67,26.41502058]
[1730970135187,7.86422058,188.73,188.67,26.41502058]
[1730970135483,13.16282058,188.73,188.67,18.5508]
[1730970135778,7.86422058,188.72,188.67,18.5508]
[1730970135991,13.16282058,188.73,188.67,26.41502058]
[1730970137387,7.86422058,188.73,188.67,26.41502058]
[1730970138779,7.86422058,188.69,188.66,20.0]
[1730970139101,7.86422058,188.68,188.65,10.0]
[1730970139273,7.86422058,188.69,188.65,10.0]
[1730970143010,7.86422058,188.68,188.65,10.0]
[1730970146406,6.5315,188.75,188.65,10.0]
[1730970146407,7.86422058,188.7,188.65,28.5527]
[1730970147089,7.86422058,188.69,188.65,28.5527]
[1730970148789,7.86422058,188.68,188.65,28.5527]
[1730970151107,7.86422058,188.67,188.65,23.252]
[1730970153488,7.86422058,188.68,188.65,23.252]
[1730970153684,7.86422058,188.66,188.65,10.0]
[1730970157122,7.86422058,188.67,188.65,10.0]
[1730970160023,5.2988,188.72,188.65,28.5527]
[1730970160204,7.86422058,188.67,188.65,28.5527]
[1730970160884,7.86422058,188.67,188.65,23.252]
[1730970161286,7.86422058,188.66,188.65,10.0]
[1730970166918,13.16472058,188.66,188.65,10.0]
[1730970167513,23.776884,188.71,188.65,10.0]
[1730970167805,7.86422058,188.66,188.65,10.0]
[1730970168000,23.776884,188.71,188.65,10.0]
[1730970168326,7.86422058,188.66,188.65,10.0]
[1730970168707,7.86422058,188.67,188.65,10.0]
[1730970169125,7.86422058,188.67,188.65,15.3008]
[1730970169701,7.86422058,188.67,188.65,10.0]
[1730970170227,5.2994,188.7,188.65,10.0]
[1730970170400,7.86422058,188.67,188.65,10.0]
[1730970170817,7.86422058,188.66,188.65,10.0]
[1730970178536,5.2988,188.72,188.65,10.0]
[1730970178739,7.86422058,188.66,188.65,10.0]
[1730970183713,16.3549,188.73,188.65,10.0]
[1730970183919,7.86422058,188.69,188.65,28.5528]
[1730970184441,7.86422058,188.69,188.65,18.5528]
[1730970184641,7.86422058,188.68,188.65,18.5528]
[1730970185013,7.86422058,188.68,188.65,13.252]
[1730970186448,7.86422058,188.67,188.61,7.86422058]
[1730970186648,7.86422058,188.67,188.62,20.0]
[1730970187630,5.2993,188.71,188.62,27.86422058]
[1730970187829,7.86422058,188.68,188.62,27.86422058]
[1730970188441,7.86422058,188.69,188.63,26.41892058]
[1730970188756,7.86422058,188.69,188.63,7.86422058]
[1730970188927,7.86422058,188.68,188.64,18.5538]
[1730970189830,7.86422058,188.68,188.64,13.2527]
[1730970193951,7.86422058,188.68,188.61,7.86422058]
[1730970194755,7.86422058,188.64,188.59,19.1384983]
[1730970198845,7.86422058,188.64,188.6,18.5577]
[1730970200036,7.86422058,188.65,188.6,18.5577]
[1730970200969,7.86422058,188.66,188.6,26.42192058]
[1730970201668,5.2988,188.72,188.61,7.86422058]
[1730970201972,7.86422058,188.68,188.62,7.86422058]
[1730970202955,7.86422058,188.68,188.63,18.5547]
[1730970203772,7.86422058,188.67,188.63,18.5547]
[1730970204162,7.86422058,188.66,188.63,13.2534]
[1730970205176,7.86422058,188.67,188.63,13.2534]
[1730970205672,5.2991,188.71,188.63,13.2534]
[1730970205982,7.86422058,188.7,188.64,7.86422058]
[1730970206664,7.86422058,188.69,188.63,21.11762058]
[1730970206876,7.86422058,188.69,188.63,26.41892058]
[1730970208167,7.86422058,188.68,188.63,13.2534]
[1730970208359,7.86422058,188.67,188.63,13.2534]
[1730970211759,7.86422058,188.68,188.63,13.2534]
[1730970212151,7.86422058,188.67,188.63,13.2534]
[1730970214780,5.2997,188.69,188.6,7.86422058]
[1730970214781,7.86422058,188.66,188.6,7.86422058]
[1730970215080,7.86422058,188.66,188.61,20.0]
[1730970216374,7.86422058,188.66,188.62,18.5557]
[1730970217877,7.86422058,188.67,188.62,18.5557]
[1730970218070,7.86422058,188.66,188.62,18.5557]
[1730970218469,7.86422058,188.65,188.62,18.5557]
[1730970218771,7.86422058,188.65,188.62,13.2541]
[1730970219280,7.86422058,188.65,188.62,18.5557]
[1730970219758,7.86422058,188.65,188.62,13.2541]
[1730970219964,7.86422058,188.67,188.62,13.2541]
[1730970221881,7.86422058,188.66,188.62,13.2541]
[1730970226674,7.86422058,188.65,188.62,13.2541]
[1730970227886,7.86422058,188.64,188.62,13.2541]
[1730970229193,7.86422058,188.64,188.62,18.5557]
[1730970229666,7.86422058,188.64,188.62,13.2541]
[1730970231078,7.86422058,188.63,188.59,0.5797983]
[1730970231282,7.86422058,188.62,188.6,5.3021]
[1730970232199,7.86422058,188.62,188.59,5.8821983]
[1730970233765,7.86422058,188.6,188.59,0.5797983]
[1730970235169,13.16642058,188.6,188.59,0.5797983]
[1730970235688,52.14560458,188.6,188.59,0.5797983]
[1730970235889,83.6024869,188.6,188.59,0.5797983]
[1730970243104,28.36872058,188.6,188.59,0.5797983]
[1730970243397,13.16642058,188.6,188.59,0.5797983]
[1730970245696,68.4001869,188.6,188.59,0.5797983]
[1730970245882,68.5256769,188.6,188.59,0.5797983]
[1730970246075,68.5256769,188.6,188.5,18.5672]
[1730970246076,23.776884,188.59,188.5,18.5672]
[1730970246279,7.86422058,188.52,188.5,18.5672]
[1730970247181,7.86422058,188.52,188.5,13.2623]
[1730970248996,5.3027,188.58,188.5,18.5673]
[1730970249179,7.86422058,188.54,188.5,18.5673]
[1730970250286,5.3027,188.58,188.5,18.5673]
[1730970250512,7.86422058,188.54,188.5,18.5673]
[1730970251613,23.776884,188.59,188.5,18.5673]
[1730970251614,7.86422058,188.53,188.5,18.5673]
[1730970251788,7.86422058,188.52,188.5,18.5673]
[1730970253401,7.86422058,188.53,188.5,13.2623]
[1730970254284,7.86422058,188.52,188.5,13.2623]
[1730970254486,7.86422058,188.51,188.5,13.2623]
[1730970254712,7.86422058,188.51,188.47,5.3058]
[1730970254887,5.303,188.57,188.46,13.2649]
[1730970254888,7.86422058,188.48,188.46,13.2649]
[1730970255387,7.86422058,188.48,188.46,18.571]
[1730970255905,7.86422058,188.47,188.42,13.2675]
[1730970256092,7.86422058,188.46,188.42,13.2675]
[1730970256295,0.2,188.55,188.42,13.2675]
[1730970256296,7.86422058,188.47,188.42,13.2675]
[1730970256702,7.86422058,188.47,188.42,18.5747]
[1730970258590,7.86422058,188.46,188.42,13.2675]
[1730970258811,7.86422058,188.45,188.42,13.2675]
[1730970262584,5.3053,188.49,188.42,13.2675]
[1730970262790,7.86422058,188.46,188.42,13.2675]
[1730970263903,7.86422058,188.45,188.42,13.2675]
[1730970265210,7.86422058,188.46,188.42,13.2675]
[1730970265402,7.86422058,188.48,188.42,21.13172058]
[1730970266108,7.86422058,188.47,188.42,13.2675]
[1730970266512,7.86422058,188.47,188.42,18.5747]
[1730970266697,7.86422058,188.46,188.42,18.5747]
[1730970267310,7.86422058,188.45,188.42,18.5747]
[1730970267615,7.86422058,188.43,188.42,13.2675]
[1730970267824,7.86422058,188.43,188.4,5.8872983]
[1730970267994,31.45688232,188.5,188.4,0.5797983]
[1730970267995,7.86422058,188.42,188.4,0.5797983]
[1730970268194,7.86422058,188.41,188.4,0.5797983]
[1730970274817,5.3073,188.42,188.4,0.5797983]
[1730970275100,31.64110458,188.41,188.4,0.5797983]
[1730970275309,7.86422058,188.41,188.4,0.5797983]
[1730970275710,31.64110458,188.41,188.4,0.5797983]
[1730970276124,7.86422058,188.41,188.4,0.5797983]
[1730970277537,7.86422058,188.41,188.4,5.8875983]
[1730970279240,7.86422058,188.41,188.4,0.5797983]
[1730970285441,13.17172058,188.41,188.4,0.5797983]
[1730970285624,36.94860458,188.41,188.4,0.5797983]
[1730970286837,31.64110458,188.41,188.4,0.5797983]
[1730970287149,36.94860458,188.41,188.4,0.5797983]
[1730970290749,6.2773,188.42,188.31,26.45022058]
[1730970290949,7.86422058,188.37,188.31,26.45022058]
[1730970291660,7.86422058,188.36,188.31,18.586]
[1730970291859,7.86422058,188.35,188.31,18.586]
[1730970294349,7.86422058,188.36,188.31,18.586]
[1730970294549,23.776884,188.4,188.31,18.586]
[1730970294776,7.86422058,188.36,188.31,18.586]
[1730970295263,7.86422058,188.38,188.32,7.86422058]
[1730970296268,7.86422058,188.38,188.33,18.5843]
[1730970296463,23.776884,188.43,188.33,26.44852058]
[1730970296647,7.86422058,188.4,188.34,7.86422058]
[1730970298339,7.86422058,188.4,188.35,18.5823]
[1730970300146,7.86422058,188.41,188.35,26.44652058]
[1730970301368,11.3514,188.47,188.35,26.44652058]
[1730970301561,7.86422058,188.42,188.36,7.86422058]
[1730970301958,15.8905,188.48,188.4,7.86422058]
[1730970302165,7.86422058,188.45,188.39,7.86422058]
[1730970302366,7.86422058,188.44,188.38,7.86422058]
[1730970302747,7.86422058,188.43,188.37,7.86422058]
[1730970303474,7.86422058,188.43,188.38,18.5794]
[1730970303658,23.776884,188.47,188.39,7.86422058]
[1730970303864,7.86422058,188.45,188.39,7.86422058]
[1730970304568,7.86422058,188.44,188.38,26.44362058]
[1730970304750,15.8905,188.48,188.39,7.86422058]
[1730970304946,6.6529,188.51,188.41,27.86422058]
[1730970305147,5.3046,188.52,188.42,7.86422058]
[1730970305346,7.86422058,188.48,188.42,7.86422058]
[1730970305667,7.86422058,188.48,188.43,18.5745]
[1730970306049,7.86422058,188.47,188.43,18.5745]
[1730970306450,7.86422058,188.47,188.43,13.2675]
[1730970306876,15.4094,188.53,188.43,13.2675]
[1730970306877,23.776884,188.52,188.43,13.2675]
[1730970307170,7.86422058,188.48,188.43,13.2675]
[1730970307349,29.081384,188.52,188.43,13.2675]
[1730970307553,23.776884,188.52,188.43,13.2675]
[1730970307749,7.86422058,188.48,188.43,13.2675]
[1730970308751,7.86422058,188.47,188.43,18.5745]
[1730970309253,29.081484,188.52,188.43,18.5745]
[1730970309459,7.86422058,188.49,188.43,26.43872058]
[1730970309879,15.4094,188.53,188.44,7.86422058]
[1730970310071,7.86422058,188.51,188.44,7.86422058]
[1730970310268,7.86422058,188.5,188.44,7.86422058]
[1730970310474,7.86422058,188.5,188.43,26.43872058]
[1730970311276,7.86422058,188.48,188.43,18.5745]
[1730970313674,7.86422058,188.49,188.43,26.43872058]
[1730970313879,7.86422058,188.5,188.44,7.86422058]
[1730970314974,7.86422058,188.5,188.45,18.5725]
[1730970315471,15.4062,188.57,188.47,7.86422058]
[1730970315773,15.4062,188.57,188.48,7.86422058]
[1730970316073,7.86422058,188.54,188.47,7.86422058]
[1730970316270,7.86422058,188.53,188.47,7.86422058]
[1730970316572,7.86422058,188.52,188.46,0.12549]
[1730970316774,7.86422058,188.53,188.46,27.98971058]
[1730970317562,7.86422058,188.53,188.47,18.5705]
[1730970318272,7.86422058,188.54,188.48,20.0]
[1730970318589,7.86422058,188.54,188.48,27.86422058]
[1730970319578,7.86422058,188.54,188.49,18.5686]
[1730970320579,7.86422058,188.53,188.49,18.5686]
[1730970321180,7.86422058,188.51,188.49,13.2633]
[1730970321356,7.86422058,188.5,188.44,7.86422058]
[1730970321556,7.86422058,188.48,188.45,18.5725]
[1730970321973,7.86422058,188.47,188.45,18.5725]
[1730970322280,7.86422058,188.46,188.45,13.2661]
[1730970322656,7.86422058,188.46,188.39,0.12549]
[1730970322857,7.86422058,188.45,188.41,13.2683]
[1730970323078,7.86422058,188.43,188.41,13.2683]
[1730970323287,7.86422058,188.42,188.41,13.2683]
[1730970323585,7.86422058,188.42,188.37,18.5804]
[1730970325181,22.5089,188.49,188.37,18.5804]
[1730970325182,7.86422058,188.43,188.37,18.5804]
[1730970325773,7.86422058,188.43,188.37,26.44462058]
[1730970326476,7.86422058,188.44,188.39,18.5784]
[1730970328261,7.86422058,188.43,188.39,18.5784]
[1730970328671,5.3058,188.48,188.39,18.5784]
[1730970328875,7.86422058,188.45,188.39,26.44262058]
[1730970329378,7.86422058,188.44,188.39,18.5784]
[1730970330470,7.86422058,188.46,188.39,26.44262058]
[1730970331168,7.86422058,188.46,188.4,7.86422058]
[1730970331786,7.86422058,188.46,188.41,18.5764]
[1730970333885,7.86422058,188.45,188.41,18.5764]
[1730970334079,7.86422058,188.44,188.41,18.5764]
[1730970334685,7.86422058,188.45,188.41,18.5764]
[1730970334987,7.86422058,188.45,188.39,7.86422058]
[1730970338172,16.3553,188.49,188.41,7.86422058]
[1730970338375,6.2664,188.53,188.36,0.12549]
[1730970338376,11.5706,188.53,188.43,7.86422058]
[1730970338578,7.86422058,188.5,188.44,7.86422058]
[1730970338875,7.86422058,188.51,188.44,7.86422058]
[1730970339284,7.86422058,188.51,188.45,7.86422058]
[1730970339594,7.86422058,188.51,188.46,5.3061]
[1730970340575,7.86422058,188.51,188.46,18.5715]
[1730970342499,7.86422058,188.52,188.46,18.5715]
[1730970342669,20.5629,188.54,188.46,18.5715]
[1730970342670,7.86422058,188.51,188.46,18.5715]
[1730970344098,7.86422058,188.49,188.46,18.5715]
[1730970344298,7.86422058,188.5,188.46,18.5715]
[1730970344471,5.3044,188.53,188.46,18.5715]
[1730970344677,7.86422058,188.51,188.46,18.5715]
[1730970345495,7.86422058,188.5,188.45,20.0]
[1730970347197,7.86422058,188.51,188.45,20.0]
[1730970347503,7.86422058,188.51,188.45,7.86422058]
[1730970348188,7.86422058,188.51,188.44,26.43772058]
[1730970348505,7.86422058,188.51,188.41,23.902374]
[1730970348506,7.86422058,188.51,188.46,18.5715]
[1730970348804,7.86422058,188.52,188.46,18.5715]
[1730970348971,7.86422058,188.51,188.46,18.5715]
[1730970351894,15.259,188.54,188.46,18.5715]
[1730970352097,7.86422058,188.53,188.47,7.86422058]
[1730970352296,6.2664,188.57,188.47,7.86422058]
[1730970352499,7.86422058,188.56,188.49,7.86422058]
[1730970353592,7.86422058,188.56,188.5,18.5675]
[1730970354009,7.86422058,188.56,188.5,26.43172058]
[1730970355714,7.86422058,188.56,188.5,18.5675]
[1730970361247,7.86422058,188.55,188.5,18.5675]
[1730970363739,7.86422058,188.55,188.5,13.2625]
[1730970364122,7.86422058,188.54,188.5,13.2625]
[1730970364366,7.86422058,188.55,188.5,13.2625]
[1730970365022,7.86422058,188.55,188.5,18.5675]
[1730970365224,7.86422058,188.56,188.5,18.5675]
[1730970365424,7.86422058,188.56,188.5,26.43172058]
[1730970366231,7.86422058,188.55,188.5,18.5675]
[1730970367963,7.86422058,188.55,188.5,13.2625]
[1730970369035,7.86422058,188.55,188.5,18.5675]
[1730970369946,7.86422058,188.55,188.5,5.305]
[1730970370347,5.303,188.57,188.45,7.86422058]
[1730970370545,7.86422058,188.51,188.45,7.86422058]
[1730970371038,7.86422058,188.51,188.42,21.938]
[1730970371246,7.86422058,188.51,188.45,7.86422058]
[1730970371451,7.86422058,188.51,188.46,18.5715]
[1730970371632,7.86422058,188.52,188.46,26.43572058]
[1730970372021,7.86422058,188.51,188.46,18.5715]
[1730970372622,7.86422058,188.52,188.46,7.86422058]
[1730970374813,7.86422058,188.51,188.46,18.5715]
[1730970376044,7.86422058,188.52,188.46,18.5715]
[1730970376340,7.86422058,188.54,188.48,7.86422058]
[1730970376711,7.86422058,188.55,188.48,7.86422058]
[1730970377112,7.86422058,188.56,188.49,7.86422058]
[1730970377364,7.86422058,188.56,188.5,27.86422058]
[1730970377713,7.86422058,188.57,188.51,7.86422058]
[1730970377937,7.86422058,188.55,188.51,18.5665]
[1730970378825,5.3019,188.61,188.51,18.5665]
[1730970379127,7.86422058,188.56,188.51,18.5665]
[1730970379331,7.86422058,188.56,188.51,13.2618]
[1730970380156,7.86422058,188.55,188.51,13.2618]
[1730970380633,7.86422058,188.55,188.49,20.12549]
[1730970381026,7.86422058,188.54,188.49,20.0]
[1730970381236,7.86422058,188.52,188.45,18.5725]
[1730970381424,5.303,188.57,188.45,26.43672058]
[1730970381425,7.86422058,188.51,188.45,26.43672058]
[1730970382325,7.86422058,188.51,188.46,18.5715]
[1730970384327,7.86422058,188.52,188.46,18.5715]
[1730970384529,7.86422058,188.52,188.46,21.12962058]
[1730970390052,7.86422058,188.52,188.46,18.5715]
[1730970390772,15.7839,188.55,188.46,18.5715]
[1730970390773,15.0061,188.59,188.49,7.86422058]
[1730970390945,7.86422058,188.56,188.5,7.86422058]
[1730970391640,7.86422058,188.56,188.5,20.0]
[1730970391843,7.86422058,188.56,188.51,18.5665]
[1730970393271,7.86422058,188.56,188.51,13.2618]
[1730970393473,7.86422058,188.55,188.51,13.2618]
[1730970393766,7.86422058,188.54,188.51,13.2618]
[1730970394149,7.86422058,188.55,188.51,13.2618]
[1730970395168,7.86422058,188.54,188.51,13.2618]
[1730970396268,7.86422058,188.53,188.51,13.2618]
[1730970396561,7.86422058,188.52,188.51,13.2618]
[1730970397251,7.86422058,188.52,188.46,7.86422058]
[1730970397453,7.86422058,188.52,188.47,20.0]
[1730970398371,7.86422058,188.52,188.48,18.5696]
[1730970400070,7.86422058,188.53,188.48,18.5696]
[1730970402476,15.0061,188.59,188.48,18.5696]
[1730970402657,7.86422058,188.53,188.48,18.5696]
[1730970403162,5.3027,188.58,188.48,18.5696]
[1730970403349,7.86422058,188.53,188.48,18.5696]
[1730970403545,7.86422058,188.52,188.48,18.5696]
[1730970405182,7.86422058,188.53,188.48,18.5696]
[1730970405671,7.86422058,188.52,188.48,18.5696]
[1730970409358,7.86422058,188.51,188.48,18.5696]
[1730970409684,7.86422058,188.49,188.48,13.264]
[1730970410693,7.86422058,188.49,188.45,20.0]
[1730970412272,5.3042,188.53,188.45,20.0]
[1730970412273,7.86422058,188.5,188.45,20.0]
[1730970412766,7.86422058,188.5,188.46,18.5715]
[1730970412967,7.86422058,188.49,188.46,18.5715]
[1730970413476,5.303,188.57,188.46,26.43572058]
[1730970413686,7.86422058,188.53,188.47,20.0]
[1730970413870,7.86422058,188.52,188.47,20.0]
[1730970414899,7.86422058,188.53,188.48,18.5696]
[1730970415569,5.303,188.57,188.48,18.5696]
[1730970415765,7.86422058,188.54,188.48,18.5696]
[1730970417681,7.86422058,188.53,188.48,18.5696]
[1730970420073,7.86422058,188.54,188.48,18.5696]
[1730970423659,7.86422058,188.54,188.47,27.86422058]
[1730970423862,7.86422058,188.55,188.49,13.2633]
[1730970424965,7.86422058,188.55,188.49,18.5686]
[1730970426813,7.86422058,188.54,188.49,18.5686]
[1730970428103,7.86422058,188.52,188.49,13.2633]
[1730970428398,7.86422058,188.51,188.49,13.2633]
[1730970428882,7.86422058,188.5,188.45,13.2656]
[1730970429085,7.86422058,188.48,188.45,18.572]
[1730970429900,7.86422058,188.48,188.45,13.2656]
[1730970430603,7.86422058,188.47,188.45,13.2656]
[1730970432802,7.86422058,188.47,188.41,18.5764]
[1730970433005,7.86422058,188.46,188.41,18.5764]
[1730970433493,7.86422058,188.44,188.41,18.5764]
[1730970433886,7.86422058,188.43,188.41,18.5764]
[1730970434081,7.86422058,188.44,188.41,18.5764]
[1730970435694,7.86422058,188.45,188.41,18.5764]
[1730970436404,7.86422058,188.46,188.41,18.5764]
[1730970439005,7.86422058,188.44,188.41,13.2689]
[1730970439391,7.86422058,188.43,188.41,13.2689]
[1730970441718,7.86422058,188.44,188.41,13.2689]
[1730970444421,7.86422058,188.42,188.41,13.2689]
[1730970444708,5.3062,188.46,188.41,13.2689]
[1730970444709,7.86422058,188.43,188.41,13.2689]
[1730970446021,31.45688232,188.5,188.41,13.2689]
[1730970446022,7.86422058,188.44,188.41,13.2689]
[1730970446311,7.86422058,188.45,188.41,13.2689]
[1730970448314,5.3058,188.48,188.41,13.2689]
[1730970448513,7.86422058,188.44,188.41,13.2689]
[1730970451111,7.86422058,188.44,188.37,30.68102058]
[1730970451316,7.86422058,188.44,188.38,18.5794]
[1730970452721,7.86422058,188.44,188.38,26.44362058]